Workbook

Sheet Feuil1
A1: 6.1 Répartition en nombre des établissements par statut et niveaux d’enseignement
A2: Niveaux d'enseignement | B2: 1.2.4. Ordre d’enseignement
B3: TOTAL GENERAL | C3: Public | D3: Privé Catholique | E3: Privé Protestant | F3: Privé Alliance chrétienne | G3: Privé Islamique | H3: Privé Laïc | I3: TOTAL PRIVE
A4: Crèche/Garderie | B4: 320 | C4: 33 | D4: 5 | E4: 1 | F4: 1 | G4: 0 | H4: 280 | I4: 287
A5: Pré-primaire/Préscolaire | B5: 1448 | C5: 445 | D5: 75 | E5: 29 | F5: 15 | G5: 8 | H5: 876 | I5: 1003
A6: Primaire | B6: 1915 | C6: 716 | D6: 211 | E6: 74 | F6: 38 | G6: 10 | H6: 866 | I6: 1199
A7: Centre d'Alphabétisation | B7: 17 | C7: 12 | D7: 0 | E7: 1 | F7: 0 | G7: 0 | H7: 4 | I7: 5
A8: Secondaire Général | B8: 349 | C8: 106 | D8: 32 | E8: 12 | F8: 6 | G8: 6 | H8: 187 | I8: 243
A9: Secondaire Technique | B9: 25 | C9: 15 | D9: 0 | E9: 0 | F9: 0 | G9: 0 | H9: 10 | I9: 10
A10: Centre/Ecole de Formation Professionnelle | B10: 66 | C10: 17 | D10: 2 | E10: 0 | F10: 0 | G10: 0 | H10: 47 | I10: 49
A11: ENI | B11: 8 | C11: 0 | D11: 1 | E11: 0 | F11: 0 | G11: 0 | H11: 7 | I11: 8
A12: Institut supérieur/Ecole supérieure/Faculté | B12: 34 | C12: 9 | D12: 0 | E12: 1 | F12: 0 | G12: 0 | H12: 24 | I12: 25
A13: TOTAL GENERAL | B13: 4182 | C13: 1353 | D13: 326 | E13: 118 | F13: 60 | G13: 24 | H13: 2301 | I13: 2829

Sheet Feuil2
A1: 6.2 Répartition en pourcentage des établissements par statut et niveaux d’enseignement
A2: Niveaux d'enseignement | B2: Public | C2: Privé Catholique | D2: Privé Protestant | E2: Privé Alliance chrétienne | F2: Privé Islamique | G2: Privé Laïc | H2: TOTAL PRIVE | I2: TOTAL GENERAL
A3: Crèche/Garderie | B3: 10.3 | C3: 1.6 | D3: 0.3 | E3: 0.3 | F3: 0 | G3: 87.5 | H3: 89.7 | I3: 100
A4: Pré-primaire/Préscolaire | B4: 30.7 | C4: 5.2 | D4: 2 | E4: 1 | F4: 0.6 | G4: 60.5 | H4: 69.3 | I4: 100
A5: Primaire | B5: 37.4 | C5: 11 | D5: 3.9 | E5: 2 | F5: 0.5 | G5: 45.2 | H5: 62.6 | I5: 100
A6: Centre d'Alphabétisation | B6: 70.6 | C6: 0 | D6: 5.9 | E6: 0 | F6: 0 | G6: 23.5 | H6: 29.4 | I6: 100
A7: Secondaire Général | B7: 30.4 | C7: 9.2 | D7: 3.4 | E7: 1.7 | F7: 1.7 | G7: 53.6 | H7: 69.6 | I7: 100
A8: Secondaire Technique | B8: 60 | C8: 0 | D8: 0 | E8: 0 | F8: 0 | G8: 40 | H8: 40 | I8: 100
A9: Centre/Ecole de Formation Professionnelle | B9: 25.8 | C9: 3 | D9: 0 | E9: 0 | F9: 0 | G9: 71.2 | H9: 74.2 | I9: 100
A10: ENI | B10: 0 | C10: 12.5 | D10: 0 | E10: 0 | F10: 0 | G10: 87.5 | H10: 100 | I10: 100
A11: Institut supérieur/Ecole supérieure/Faculté | B11: 26.5 | C11: 0 | D11: 2.9 | E11: 0 | F11: 0 | G11: 70.6 | H11: 73.5 | I11: 100
A12: ENSEMBLE | B12: 32.4 | C12: 7.8 | D12: 2.8 | E12: 1.4 | F12: 0.6 | G12: 55 | H12: 67.6 | I12: 100

Sheet Feuil4
A1: 6.4 Répartition des élèves en pourcentage par statut et par niveau d’enseignement
A2: Niveaux d'enseignement | B2: Public | C2: Privé Catholique | D2: Privé Protestant | E2: Privé Alliance chrétienne | F2: Privé Islamique | G2: Privé Laïc | H2: TOTAL PRIVE | I2: TOTAL GENERAL
A3: Crèche/Garderie | B3: 22.1 | C3: 2 | D3: 0.3 | E3: 0.3 | F3: 0 | G3: 75.3 | H3: 77.9 | I3: 100
A4: Pré-primaire/Préscolaire | B4: 33.9 | C4: 5.1 | D4: 1.3 | E4: 0.7 | F4: 0.6 | G4: 58.3 | H4: 66.1 | I4: 100
A5: Primaire | B5: 53 | C5: 10.4 | D5: 2.6 | E5: 2.2 | F5: 0.5 | G5: 31.3 | H5: 47 | I5: 100
A6: Centre d'Alphabétisation | B6: 77.8 | C6: 0 | D6: 8.7 | E6: 0 | F6: 0 | G6: 13.5 | H6: 22.2 | I6: 100
A7: Secondaire Général | B7: 65.6 | C7: 9.3 | D7: 1.7 | E7: 0.9 | F7: 1.7 | G7: 20.8 | H7: 34.4 | I7: 100
A8: Secondaire Technique | B8: 93.8 | C8: 0 | D8: 0 | E8: 0 | F8: 0 | G8: 6.2 | H8: 6.2 | I8: 100
A9: Centre/Ecole de Formation Professionnelle | B9: 24.6 | C9: 0.6 | D9: 0 | E9: 0 | F9: 0 | G9: 74.8 | H9: 75.4 | I9: 100
A10: ENI | B10: 0 | C10: 0 | D10: 0 | E10: 0 | F10: 0 | G10: 100 | H10: 100 | I10: 100
A11: Institut supérieur/Ecole supérieure/Faculté | B11: 86.9 | C11: 0 | D11: 0.1 | E11: 0 | F11: 0 | G11: 13.1 | H11: 13.1 | I11: 100
A12: ENSEMBLE | B12: 56 | C12: 8.6 | D12: 1.9 | E12: 1.4 | F12: 0.9 | G12: 31.3 | H12: 44 | I12: 100

Sheet Feuil5
A1: 6.3 Répartition des élèves par statut et par niveau d’enseignement
A2: Niveaux d'enseignement | B2: Public | C2: Privé Catholique | D2: Privé Protestant | E2: Privé Alliance chrétienne | F2: Privé Islamique | G2: Privé Laïc | H2: TOTAL PRIVE | I2: TOTAL GENERAL
A3: Crèche/Garderie
A4: Garçons | B4: 459 | C4: 42 | D4: 7 | E4: 8 | F4: 0 | G4: 1643 | H4: 1700 | I4: 2159
A5: Filles | B5: 496 | C5: 46 | D5: 4 | E5: 7 | F5: 0 | G5: 1621 | H5: 1678 | I5: 2174 | K5: =+SUM(I4:I5) -> 4333
A6: Total | B6: 955 | C6: 88 | D6: 11 | E6: 15 | F6: 0 | G6: 3262 | H6: 3376 | I6: 4331 | K6: =+K5+K9+K13+K17+K21+K25+K29+K33+K37 -> 628877
A7: Pré-primaire/Préscolaire
A8: Garçons | B8: 13083 | C8: 2002 | D8: 481 | E8: 287 | F8: 227 | G8: 22422 | H8: 25419 | I8: 38502
A9: Filles | B9: 13195 | C9: 1983 | D9: 563 | E9: 290 | F9: 235 | G9: 22739 | H9: 25810 | I9: 39005 | K9: =+SUM(I8:I9) -> 77507
A10: Total | B10: 26278 | C10: 3985 | D10: 1044 | E10: 577 | F10: 462 | G10: 45161 | H10: 51229 | I10: 77507
A11: Primaire
A12: Garçons | B12: 78171 | C12: 15142 | D12: 3739 | E12: 3229 | F12: 666 | G12: 45002 | H12: 67778 | I12: 145949
A13: Filles | B13: 72809 | C13: 14484 | D13: 3603 | E13: 2898 | F13: 754 | G13: 44244 | H13: 65983 | I13: 138792 | K13: =+SUM(I12:I13) -> 284741
A14: Total | B14: 150980 | C14: 29626 | D14: 7342 | E14: 6127 | F14: 1420 | G14: 89246 | H14: 133761 | I14: 284741
A15: Centre d'Alphabétisation
A16: Garçons | B16: 253 | C16: 0 | D16: 28 | E16: 0 | F16: 0 | G16: 15 | H16: 43 | I16: 296
A17: Filles | B17: 300 | C17: 0 | D17: 34 | E17: 0 | F17: 0 | G17: 81 | H17: 115 | I17: 415 | K17: =+SUM(I16:I17) -> 711
A18: Total | B18: 553 | C18: 0 | D18: 62 | E18: 0 | F18: 0 | G18: 96 | H18: 158 | I18: 711
A19: Secondaire Général
A20: Garçons | B20: 66328 | C20: 8815 | D20: 1937 | E20: 995 | F20: 1612 | G20: 21849 | H20: 35208 | I20: 101536
A21: Filles | B21: 75029 | C21: 11022 | D21: 1808 | E21: 976 | F21: 1967 | G21: 23012 | H21: 38785 | I21: 113814 | K21: =+SUM(I20:I21) -> 215350
A22: Total | B22: 141485 | C22: 20098 | D22: 3745 | E22: 1971 | F22: 3579 | G22: 44907 | H22: 74300 | I22: 215785
A23: Secondaire Technique
A24: Garçons | B24: 6543 | C24: 0 | D24: 0 | E24: 0 | F24: 0 | G24: 307 | H24: 307 | I24: 6850
A25: Filles | B25: 3110 | C25: 0 | D25: 0 | E25: 0 | F25: 0 | G25: 332 | H25: 332 | I25: 3442 | K25: =+SUM(I24:I25) -> 10292
A26: Total | B26: 9618 | C26: 0 | D26: 0 | E26: 0 | F26: 0 | G26: 639 | H26: 639 | I26: 10257
A27: Centre/Ecole de Formation Professionnelle
A28: Garçons | B28: 1527 | C28: 35 | D28: 0 | E28: 0 | F28: 0 | G28: 2541 | H28: 2576 | I28: 4103
A29: Filles | B29: 1869 | C29: 47 | D29: 0 | E29: 0 | F29: 0 | G29: 7808 | H29: 7855 | I29: 9724 | K29: =+SUM(I28:I29) -> 13827
A30: Total | B30: 3396 | C30: 82 | D30: 0 | E30: 0 | F30: 0 | G30: 10349 | H30: 10431 | I30: 13827
A31: ENI
A32: Garçons | B32: 0 | C32: 0 | D32: 0 | E32: 0 | F32: 0 | G32: 58 | H32: 58 | I32: 58
A33: Filles | B33: 0 | C33: 0 | D33: 0 | E33: 0 | F33: 0 | G33: 89 | H33: 89 | I33: 89 | K33: =+SUM(I32:I33) -> 147
A34: Total | B34: 0 | C34: 0 | D34: 0 | E34: 0 | F34: 0 | G34: 145 | H34: 145 | I34: 145
A35: Institut supérieur/Ecole supérieure/Faculté
A36: Garçons | B36: 9329 | C36: 0 | D36: 12 | E36: 0 | F36: 0 | G36: 1367 | H36: 1379 | I36: 10708
A37: Filles | B37: 9761 | C37: 0 | D37: 0 | E37: 0 | F37: 0 | G37: 1500 | H37: 1500 | I37: 11261 | K37: =+SUM(I36:I37) -> 21969
A38: Total | B38: 19090 | C38: 0 | D38: 12 | E38: 0 | F38: 0 | G38: 2867 | H38: 2879 | I38: 21969
A39: ND
B40: =+B37+B36+B29+B28+B25+B24+B21+B20+B17+B16+B13+B12+B9+B8+B5+B4 -> 352262 | H40: =+H37+H36+H29+H28+H25+H24+H21+H20+H17+H16+H13+H12+H9+H8+H5+H4 -> 276468

Sheet Feuil6
A1: 6.4 Répartition des élèves en pourcentage par statut et par niveau d’enseignement
A2: Niveaux d'enseignement | B2: Public | C2: Privé Catholique | D2: Privé Protestant | E2: Privé Alliance chrétienne | F2: Privé Islamique | G2: Privé Laïc | H2: TOTAL PRIVE | I2: TOTAL GENERAL
A3: Crèche/Garderie | B3: 22.1 | C3: 2 | D3: 0.3 | E3: 0.3 | F3: 0 | G3: 75.3 | H3: 77.9 | I3: 100
A4: Pré-primaire/Préscolaire | B4: 33.9 | C4: 5.1 | D4: 1.3 | E4: 0.7 | F4: 0.6 | G4: 58.3 | H4: 66.1 | I4: 100
A5: Primaire | B5: 53 | C5: 10.4 | D5: 2.6 | E5: 2.2 | F5: 0.5 | G5: 31.3 | H5: 47 | I5: 100
A6: Centre d'Alphabétisation | B6: 77.8 | C6: 0 | D6: 8.7 | E6: 0 | F6: 0 | G6: 13.5 | H6: 22.2 | I6: 100
A7: Secondaire Général | B7: 65.6 | C7: 9.3 | D7: 1.7 | E7: 0.9 | F7: 1.7 | G7: 20.8 | H7: 34.4 | I7: 100
A8: Secondaire Technique | B8: 93.8 | C8: 0 | D8: 0 | E8: 0 | F8: 0 | G8: 6.2 | H8: 6.2 | I8: 100
A9: Centre/Ecole de Formation Professionnelle | B9: 24.6 | C9: 0.6 | D9: 0 | E9: 0 | F9: 0 | G9: 74.8 | H9: 75.4 | I9: 100
A10: ENI | B10: 0 | C10: 0 | D10: 0 | E10: 0 | F10: 0 | G10: 100 | H10: 100 | I10: 100
A11: Institut supérieur/Ecole supérieure/Faculté | B11: 86.9 | C11: 0 | D11: 0.1 | E11: 0 | F11: 0 | G11: 13.1 | H11: 13.1 | I11: 100
A12: ENSEMBLE | B12: 56 | C12: 8.6 | D12: 1.9 | E12: 1.4 | F12: 0.9 | G12: 31.3 | H12: 44 | I12: 100

Sheet Feuil7
A1: 6.5a Principaux chiffres par niveaux d’enseignement (Public)
A2: Niveaux d'enseignement | B2: Nombre | C2: Enfants/Elèves/Apprenants/
A3: Stagiaires/Etudiants | D3: Encadreurs/Enseignants/
A4: Formateurs permanents | D4: Salles de classe/
B5: d'établissements | C5: G | D5: F | E5: T | F5: H | G5: F | H5: T | I5: amphithéatres
A6: Crèche/Garderie | B6: 33 | C6: 459 | D6: 496 | E6: 955 | F6: 6 | G6: 146 | H6: 152 | I6: 140
A7: Pré-primaire/Préscolaire | B7: 445 | C7: 13083 | D7: 13195 | E7: 26278 | F7: 161 | G7: 1647 | H7: 1808 | I7: 836
A8: Primaire | B8: 716 | C8: 78171 | D8: 72809 | E8: 150980 | F8: 1390 | G8: 2012 | H8: 3402 | I8: 1404
A9: Centre d'Alphabétisation | B9: 12 | C9: 253 | D9: 300 | E9: 553 | F9: 12 | G9: 34 | H9: 46 | I9: 22
A10: Secondaire Général | B10: 106 | C10: 66328 | D10: 75029 | E10: 141357 | F10: 2400 | G10: 1156 | H10: 3556 | I10: 198
A11: Secondaire Technique | B11: 15 | C11: 6543 | D11: 3110 | E11: 9653 | F11: 451 | G11: 182 | H11: 633 | I11: 24
A12: Centre/Ecole de Formation Professionnelle | B12: 17 | C12: 1527 | D12: 1869 | E12: 3396 | F12: 99 | G12: 53 | H12: 152 | I12: 30
A13: Institut supérieur/Ecole supérieure/Faculté | B13: 9 | C13: 9329 | D13: 9761 | E13: 19090 | F13: 246 | G13: 226 | H13: 472 | I13: 26
A14: ENSEMBLE | B14: 1353 | C14: 175693 | D14: 176569 | E14: 352262 | F14: 4765 | G14: 5456 | H14: 10221 | I14: 2680

Sheet Feuil3
A1: 6.3 Répartition des élèves par statut et par niveau d’enseignement
A2: Niveaux d'enseignement | B2: Public | C2: Privé Catholique | D2: Privé Protestant | E2: Privé Alliance chrétienne | F2: Privé Islamique | G2: Privé Laïc | H2: TOTAL PRIVE | I2: TOTAL GENERAL
A3: Crèche/Garderie | B3: 955 | C3: 88 | D3: 11 | E3: 15 | F3: 0 | G3: 3262 | H3: 3376 | I3: 4331 | J3: =+B3+H3 -> 4331
A4: Pré-primaire/Préscolaire | B4: 26278 | C4: 3985 | D4: 1044 | E4: 577 | F4: 462 | G4: 45161 | H4: 51229 | I4: 77507 | J4: =+B4+H4 -> 77507
A5: Primaire | B5: 150980 | C5: 29626 | D5: 7342 | E5: 6127 | F5: 1420 | G5: 89246 | H5: 133761 | I5: 284741 | J5: 284741
A6: Centre d'Alphabétisation | B6: 553 | C6: 0 | D6: 62 | E6: 0 | F6: 0 | G6: 96 | H6: 158 | I6: 711 | J6: 711
A7: Secondaire Général | B7: 141485 | C7: 20098 | D7: 3745 | E7: 1971 | F7: 3579 | G7: 44907 | H7: 74300 | I7: 215785 | J7: 215785
A8: Secondaire Technique | B8: 9618 | C8: 0 | D8: 0 | E8: 0 | F8: 0 | G8: 639 | H8: 639 | I8: 10257 | J8: 10257
A9: Centre/Ecole de Formation Professionnelle | B9: 3396 | C9: 82 | D9: 0 | E9: 0 | F9: 0 | G9: 10349 | H9: 10431 | I9: 13827 | J9: 13827
A10: ENI | B10: 0 | C10: 0 | D10: 0 | E10: 0 | F10: 0 | G10: 145 | H10: 145 | I10: 145 | J10: 145
A11: Institut supérieur/Ecole supérieure/Faculté | B11: 19090 | C11: 0 | D11: 12 | E11: 0 | F11: 0 | G11: 2867 | H11: 2879 | I11: 21969 | J11: 21969
A12: ENSEMBLE | B12: 352355 | C12: 53879 | D12: 12216 | E12: 8690 | F12: 5461 | G12: 196672 | H12: 276918 | I12: 629273 | J12: 629273
C16: =+B12+H12 -> 629273
